bitfinex-derivatives/quotes_SOLF0:USTF0_20250117
["timestamp","ask_amount","ask_price","bid_price","bid_amount"]
[1737140601062,11.23762324,216.86,216.74,1.4637]
[1737140601761,4.6099,216.83,216.77,4.611]
[1737140601961,11.23762324,216.86,216.77,4.611]
[1737140602464,4.6103,216.81,216.77,4.611]
[1737140605964,4.6105,216.8,216.76,4.6112]
[1737140606566,4.6105,216.8,216.77,4.611]
[1737140607268,11.23762324,216.87,216.77,4.611]
[1737140607269,4.6102,216.81,216.77,4.611]
[1737140610366,4.6102,216.81,216.76,7.18766057]
[1737140610563,4.6095,216.85,216.78,7.18766057]
[1737140611368,7.18766057,216.86,216.78,7.18766057]
[1737140611569,4.6096,216.84,216.8,4.6102]
[1737140613571,7.18766057,216.89,216.82,7.18766057]
[1737140614269,4.6087,216.88,216.84,4.6094]
[1737140614672,4.6092,216.86,216.82,11.79756057]
[1737140614972,7.18766057,216.89,216.82,7.18766057]
[1737140615468,4.6088,216.88,216.84,4.6095]
[1737140615670,7.18766057,216.89,216.82,7.18766057]
[1737140616969,4.6089,216.87,216.82,11.79736057]
[1737140617172,4.6089,216.87,216.82,7.18766057]
[1737140617867,4.6092,216.86,216.82,7.18766057]
[1737140618073,7.18766057,216.89,216.82,7.18766057]
[1737140619171,4.6089,216.87,216.83,4.6097]
[1737140624573,4.6087,216.88,216.84,4.6094]
[1737140625175,4.6089,216.87,216.83,4.6097]
[1737140626572,4.6089,216.87,216.84,4.6095]
[1737140626767,4.6089,216.87,216.82,7.18766057]
[1737140627967,9.94160681,216.97,216.84,7.18766057]
[1737140628173,7.18766057,216.91,216.84,7.18766057]
[1737140629075,4.6083,216.9,216.86,4.609]
[1737140629476,4.6083,216.9,216.84,7.18766057]
[1737140629873,2.9773,216.97,216.74,1.4637]
[1737140629874,7.18766057,216.85,216.74,1.4637]
[1737140630072,7.18766057,216.75,216.73,25.45469458]
[1737140630576,4.6116,216.74,216.73,25.45469458]
[1737140631077,7.18766057,216.75,216.61,1.5667]
[1737140631374,11.2503819,216.68,216.6,6.37062486]
[1737140631577,4.6136,216.65,216.6,6.37062486]
[1737140631777,11.2503819,216.68,216.6,6.37062486]
[1737140632078,11.2503819,216.75,216.65,4.6135]
[1737140632277,11.2503819,216.78,216.64,11.2503819]
[1737140632577,3.1648,216.8,216.67,11.2503819]
[1737140632778,11.2503819,216.81,216.7,11.2503819]
[1737140632973,11.2503819,216.84,216.73,4.6118]
[1737140633376,11.2503819,216.81,216.67,11.2503819]
[1737140633576,11.2503819,216.78,216.66,1.487]
[1737140635078,11.2503819,216.75,216.65,3.1538]
[1737140635278,11.2503819,216.72,216.65,3.1538]
[1737140635977,11.2503819,216.75,216.65,3.1538]
[1737140636179,11.2503819,216.78,216.65,3.1538]
[1737140636483,7.7331,216.8,216.67,11.2503819]
[1737140636778,7.7331,216.8,216.73,4.6118]
[1737140637879,11.2503819,216.81,216.7,11.2503819]
[1737140637880,11.2503819,216.84,216.75,4.6113]
[1737140638380,4.6097,216.84,216.77,4.6109]
[1737140638577,4.6097,216.84,216.73,11.2503819]
[1737140638778,4.6097,216.84,216.74,1.5978]
[1737140639282,11.2503819,216.84,216.74,1.5978]
[1737140641086,4.6104,216.8,216.75,4.6114]
[1737140641785,11.2503819,216.84,216.74,1.5978]
[1737140643082,4.6099,216.83,216.77,4.6109]
[1737140644489,4.6101,216.82,216.77,4.6108]
[1737140644787,11.2503819,216.84,216.77,4.6108]
[1737140645485,11.2503819,216.84,216.78,4.6106]
[1737140646589,4.6101,216.82,216.78,4.6106]
[1737140647384,4.61,216.82,216.78,4.6106]
[1737140649295,11.2503819,216.84,216.78,4.6106]
[1737140649495,4.6101,216.81,216.78,4.6106]
[1737140650796,4.6099,216.82,216.78,4.6106]
[1737140652294,4.6099,216.82,216.74,1.5978]
[1737140652597,14.3250819,216.87,216.79,4.6104]
[1737140652799,4.609,216.86,216.77,11.2503819]
[1737140652999,13.9949,216.94,216.74,1.5978]
[1737140653000,11.2503819,216.87,216.74,1.5978]
[1737140653199,11.2503819,216.84,216.74,1.5978]
[1737140654900,11.2503819,216.84,216.74,6.2092]
[1737140655401,11.2503819,216.84,216.74,1.5978]
[1737140655803,4.6105,216.79,216.75,4.6113]
[1737140656302,4.6105,216.79,216.76,4.6111]
[1737140656497,4.6105,216.79,216.74,1.5978]
[1737140657603,11.2503819,216.9,216.75,11.2503819]
[1737140657804,11.2503819,216.9,216.78,11.2503819]
[1737140658593,4.6094,216.85,216.81,4.6099]
[1737140658798,11.2503819,216.9,216.78,11.2503819]
[1737140659202,4.6097,216.83,216.8,4.6103]
[1737140659907,11.2503819,216.9,216.78,11.2503819]
[1737140660606,4.6096,216.84,216.78,11.2503819]
[1737140661105,4.6096,216.84,216.8,4.6102]
[1737140667606,4.6096,216.84,216.81,4.6101]
[1737140667909,11.2503819,216.9,216.78,11.2503819]
[1737140669112,4.6093,216.85,216.81,4.61]
[1737140670819,11.2503819,216.9,216.81,4.61]
[1737140671621,0.84725254,216.89,216.81,4.61]
[1737140671815,11.2503819,216.83,216.69,7.84822486]
[1737140672017,11.2503819,216.76,216.69,7.84822486]
[1737140672218,11.2503819,216.76,216.68,1.5539]
[1737140672420,4.6121,216.72,216.68,1.5539]
[1737140672816,11.2503819,216.73,216.68,1.5539]
[1737140673017,11.2503819,216.73,216.63,1.5767]
[1737140673718,11.2503819,216.73,216.62,1.5192]
[1737140674019,11.2503819,216.7,216.62,1.5192]
[1737140674424,4.6131,216.67,216.62,1.5192]
[1737140675620,4.6129,216.69,216.62,1.5192]
[1737140676918,4.6129,216.68,216.62,1.5192]
[1737140677825,4.6129,216.68,216.62,6.1333]
[1737140678718,4.6131,216.67,216.62,6.1333]
[1737140680723,4.6133,216.66,216.62,6.1333]
[1737140681623,4.613,216.68,216.63,4.6139]
[1737140682723,4.6122,216.71,216.66,4.6133]
[1737140683024,4.6122,216.71,216.62,1.5192]
[1737140683025,11.2503819,216.74,216.62,1.5192]
[1737140683225,0.84794268,216.73,216.62,1.5192]
[1737140683421,4.613,216.68,216.63,4.6139]
[1737140683622,11.2503819,216.74,216.62,1.5192]
[1737140683926,0.8479793,216.73,216.62,1.5192]
[1737140684427,11.2503819,216.74,216.62,1.5192]
[1737140684618,0.84801236,216.73,216.62,1.5192]
[1737140685225,4.6129,216.68,216.63,4.6139]
[1737140685933,4.6126,216.7,216.62,1.5192]
[1737140687029,11.2503819,216.74,216.62,1.5192]
[1737140687327,0.84791989,216.73,216.62,1.5192]
[1737140687929,0.84791989,216.72,216.62,1.5192]
[1737140688128,11.2503819,216.74,216.62,1.5192]
[1737140688323,4.6128,216.69,216.64,4.6135]
[1737140689129,11.2503819,216.74,216.64,4.6135]
[1737140689322,4.6129,216.68,216.64,4.6135]
[1737140691830,3.1049,216.81,216.64,11.2503819]
[1737140692030,11.2503819,216.78,216.64,11.2503819]
[1737140692237,0.84783733,216.77,216.64,11.2503819]
[1737140692837,4.6127,216.69,216.65,4.6134]
[1737140693236,11.2503819,216.75,216.62,1.5192]
[1737140693431,4.6129,216.68,216.64,7.19592119]
[1737140693735,7.19592119,216.69,216.62,8.71512119]
[1737140693936,4.613,216.67,216.62,13.32902119]
[1737140694134,4.613,216.67,216.62,1.5192]
[1737140694135,7.19592119,216.67,216.62,1.5192]
[1737140694748,4.6135,216.65,216.62,1.5192]
[1737140699737,4.6133,216.66,216.62,1.5192]
[1737140700346,4.6133,216.66,216.62,13.32912119]
[1737140700948,4.6133,216.66,216.62,6.1332]
[1737140701551,7.19592119,216.67,216.62,1.5192]
[1737140701749,4.6135,216.65,216.62,1.5192]
[1737140702344,4.6133,216.66,216.62,1.5192]
[1737140702548,4.6133,216.66,216.62,8.71512119]
[1737140702851,4.6133,216.66,216.62,13.32912119]
[1737140703646,4.78,216.77,216.62,8.71512119]
[1737140703853,7.19592119,216.69,216.65,4.6134]
[1737140704347,7.19592119,216.69,216.62,8.71512119]
[1737140704648,4.613,216.67,216.63,4.6138]
[1737140706954,7.19592119,216.65,216.5,7.19592119]
[1737140707255,7.19592119,216.56,216.49,25.45469458]
[1737140707451,4.6163,216.51,216.49,25.45469458]
[1737140707655,7.19592119,216.51,216.49,25.45469458]
[1737140707955,7.19592119,216.51,216.43,7.19592119]
[1737140708151,7.19592119,216.47,216.4,6.37062486]
[1737140708453,7.19592119,216.45,216.4,6.37062486]
[1737140708756,7.19592119,216.45,216.4,4.6186]
[1737140709255,7.19592119,216.43,216.32,6.37062486]
[1737140709451,11.2724906,216.46,216.33,7.8012]
[1737140709648,11.2724906,216.46,216.33,3.0212]
[1737140709854,4.618,216.44,216.36,4.6195]
[1737140710051,11.2724906,216.46,216.33,3.0212]
[1737140710253,11.2724906,216.4,216.33,3.0212]
[1737140710451,4.6191,216.39,216.33,1.4994]
[1737140710655,11.2724906,216.4,216.33,1.4994]
[1737140710852,15.8911906,216.4,216.33,1.4994]
[1737140711253,11.2724906,216.4,216.29,6.95326947]
[1737140711654,4.6189,216.39,216.31,4.6205]
[1737140712059,11.2724906,216.4,216.31,4.6205]
[1737140712459,11.2724906,216.4,216.29,6.95326947]
[1737140712660,11.2724906,216.4,216.32,4.6203]
[1737140714262,11.2724906,216.4,216.33,4.6201]
[1737140716561,11.2724906,216.4,216.29,6.95326947]
[1737140716764,11.2724906,216.4,216.32,4.6203]
[1737140717065,11.2724906,216.4,216.29,6.95326947]
[1737140717463,11.2724906,216.4,216.33,4.6201]
[1737140718360,11.2724906,216.4,216.34,4.6199]
[1737140718961,1.6988,216.47,216.32,11.2724906]
[1737140719158,11.2724906,216.41,216.29,18.22576007]
[1737140719464,11.2724906,216.34,216.27,4.6214]
[1737140719763,11.2724906,216.34,216.2,11.2724906]
[1737140720163,4.6203,216.33,216.2,11.2724906]
[1737140720366,11.2724906,216.34,216.2,11.2724906]
[1737140721060,4.6203,216.32,216.27,4.6212]
[1737140721265,11.2724906,216.34,216.2,11.2724906]
[1737140722065,4.6204,216.32,216.24,4.622]
[1737140722265,4.6204,216.32,216.2,11.2724906]
[1737140723367,4.6201,216.33,216.2,11.2724906]
[1737140724167,4.6201,216.33,216.27,4.6213]
[1737140725470,4.6201,216.33,216.28,4.6212]
[1737140725869,4.6203,216.32,216.28,4.6212]
[1737140731366,7.22312429,216.29,216.28,4.6212]
[1737140731565,0.164,216.47,216.27,7.22312429]
[1737140731771,0.84909362,216.46,216.34,7.22312429]
[1737140731970,7.22312429,216.43,216.36,7.22312429]
[1737140732176,7.22312429,216.45,216.38,7.22312429]
[1737140732577,1.4959,216.47,216.42,4.6182]
[1737140732578,7.22312429,216.47,216.42,4.6182]
[1737140732777,7.42595429,216.5,216.44,7.22312429]
[1737140733472,0.20283,216.5,216.41,11.26363398]
[1737140733671,0.20283,216.5,216.44,4.6177]
[1737140733876,0.20283,216.5,216.44,11.26363398]
[1737140734875,0.20283,216.5,216.43,1.5461]
[1737140734876,0.20283,216.5,216.49,4.6167]
[1737140735082,11.26363398,216.6,216.47,11.26363398]
[1737140735283,0.84838445,216.59,216.47,11.26363398]
[1737140735474,11.26363398,216.6,216.47,11.26363398]
[1737140735781,0.84835447,216.59,216.47,11.26363398]
[1737140736282,5.46335447,216.59,216.51,4.6164]
[1737140736476,4.615,216.59,216.47,11.26363398]
[1737140736873,4.615,216.59,216.53,4.6162]
[1737140737582,11.26363398,216.6,216.55,4.6157]
[1737140738285,11.26363398,216.6,216.47,11.26363398]
[1737140738479,11.26363398,216.63,216.5,11.26363398]
[1737140738679,11.26363398,216.66,216.53,11.26363398]
[1737140738879,11.26363398,216.66,216.54,3.0254]
[1737140739182,0.84813466,216.65,216.54,3.0254]
[1737140740084,4.6139,216.64,216.57,4.6153]
[1737140741286,11.26363398,216.66,216.57,4.6153]
[1737140741485,4.6141,216.63,216.57,4.6153]
[1737140742985,4.6139,216.64,216.58,4.615]
[1737140743186,11.26363398,216.66,216.58,4.615]
[1737140743384,0.84816548,216.65,216.58,4.615]
[1737140744186,0.84816548,216.65,216.6,4.6146]
[1737140744387,0.84816548,216.65,216.56,11.26363398]
[1737140744388,11.26363398,216.66,216.56,11.26363398]
[1737140744684,1.5383,216.73,216.56,11.26363398]
[1737140744685,11.26363398,216.69,216.56,11.26363398]
[1737140744889,0.84807036,216.68,216.56,11.26363398]
[1737140745387,0.84804694,216.67,216.59,11.26363398]
[1737140746477,0.84804694,216.67,216.64,4.6138]
[1737140747581,0.84804694,216.67,216.59,11.26363398]
[1737140747582,0.84804694,216.67,216.65,4.6136]
[1737140751587,0.84804694,216.67,216.63,4.6139]
[1737140751789,11.26363398,216.72,216.59,11.26363398]
[1737140751983,0.84804353,216.71,216.59,11.26363398]
[1737140752183,0.84804353,216.71,216.61,4.6144]
[1737140752588,11.26363398,216.69,216.55,1.4569]
[1737140752793,11.26363398,216.66,216.55,6.2369]
[1737140752990,0.84804353,216.65,216.55,6.2369]
[1737140753188,4.6147,216.6,216.55,6.2369]
[1737140753589,11.26363398,216.66,216.55,6.2369]
[1737140753796,4.6143,216.62,216.56,4.6155]
[1737140754296,4.6145,216.61,216.56,4.6155]
[1737140754691,4.6145,216.61,216.55,10.8526]
[1737140755401,11.26363398,216.6,216.54,1.5035]
[1737140755595,11.26363398,216.57,216.48,1.5822]
[1737140755900,0.84849366,216.56,216.48,1.5822]
[1737140756198,11.26363398,216.57,216.48,1.5822]
[1737140756401,0.84847084,216.56,216.48,1.5822]
[1737140756593,4.6166,216.52,216.48,1.5822]
[1737140756794,11.26363398,216.57,216.48,1.5822]
[1737140756999,4.6159,216.55,216.48,1.5822]
[1737140757198,11.26363398,216.57,216.48,1.5822]
[1737140757400,0.8484704,216.56,216.48,1.5822]
[1737140757795,11.26363398,216.57,216.48,1.5822]
[1737140758204,11.26363398,216.57,216.48,6.1994]
[1737140758606,0.84847389,216.56,216.48,6.1994]
[1737140759109,4.6162,216.53,216.48,6.1994]
[1737140759309,195.834,216.69,216.51,11.26363398]
[1737140759506,11.26363398,216.66,216.51,11.26363398]
[1737140759709,4.6151,216.58,216.49,11.26363398]
[1737140760106,4.6151,216.58,216.5,1.4628]
[1737140760310,4.6151,216.58,216.52,4.6162]
[1737140760913,4.6151,216.58,216.5,1.4628]
[1737140761315,11.26363398,216.63,216.5,1.4628]
[1737140761316,11.26363398,216.63,216.51,4.6164]
[1737140761612,4.6153,216.57,216.51,4.6164]
[1737140762913,11.26363398,216.63,216.5,1.4628]
[1737140763106,4.6158,216.55,216.5,1.4628]
[1737140763813,11.26363398,216.6,216.5,1.4628]
[1737140764116,11.26363398,216.57,216.5,1.4628]
[1737140764312,4.6165,216.52,216.5,1.4628]
[1737140765411,4.6166,216.51,216.5,1.4628]
[1737140768911,4.6153,216.57,216.51,4.6166]
[1737140769113,11.26363398,216.63,216.51,4.6166]
[1737140769314,0.848372,216.62,216.5,1.4628]
[1737140769505,4.6159,216.55,216.5,6.0794]
[1737140770306,4.616,216.54,216.5,6.0794]
[1737140770511,11.26363398,216.54,216.43,3.1842]
[1737140770910,4.6173,216.48,216.43,3.1842]
[1737140772019,4.6167,216.51,216.43,3.1842]
[1737140772317,11.26363398,216.54,216.45,4.6179]
[1737140772917,11.26363398,216.57,216.46,4.6175]
[1737140773118,1.4714,216.59,216.46,11.26363398]
[1737140773315,0.84844396,216.58,216.46,11.26363398]
[1737140773717,11.26363398,216.6,216.46,11.26363398]
[1737140774013,0.84843453,216.59,216.46,11.26363398]
[1737140774212,4.6159,216.55,216.49,4.6168]
[1737140775826,4.616,216.54,216.49,4.6168]
[1737140781123,4.6163,216.53,216.49,4.6168]
[1737140782633,11.26363398,216.54,216.43,3.1842]
[1737140782824,4.6177,216.46,216.43,1.5745]
[1737140783019,11.26363398,216.59,216.42,1.4537]
[1737140783020,11.26363398,216.51,216.42,1.4537]
[1737140783325,4.6185,216.43,216.38,9.3993]
[1737140783530,11.26363398,216.51,216.38,16.04363398]
[1737140785131,4.6175,216.47,216.42,4.6185]
[1737140787132,4.6172,216.49,216.44,4.6181]
[1737140787329,11.26363398,216.54,216.41,11.26363398]
[1737140787730,4.6168,216.51,216.43,4.6183]
[1737140788030,11.26363398,216.54,216.43,4.6183]
[1737140788331,4.6172,216.49,216.43,4.6183]
[1737140790134,4.6172,216.49,216.44,4.618]
[1737140792531,4.6173,216.48,216.44,4.618]
[1737140792737,11.26363398,216.54,216.38,16.04363398]
[1737140793035,11.26363398,216.48,216.37,1.4814]
[1737140793235,11.26363398,216.48,216.36,11.75386498]
[1737140793428,11.26363398,216.45,216.33,86.48]
[1737140794137,11.26363398,216.48,216.33,86.48]
[1737140794728,4.6181,216.45,216.38,4.6192]
[1737140794928,11.26363398,216.48,216.38,4.6192]
[1737140795529,4.6183,216.44,216.38,4.6192]
[1737140795838,11.26363398,216.48,216.38,4.6192]
[1737140796139,11.26363398,216.42,216.25,6.37062486]
[1737140796333,11.26363398,216.42,216.27,1.4638]
[1737140796536,4.6194,216.39,216.29,11.26363398]
[1737140796834,1.8509,216.47,216.29,11.26363398]
[1737140797038,4.619,216.4,216.34,4.6202]
[1737140797537,4.619,216.4,216.32,11.26363398]
[1737140798441,11.26363398,216.45,216.32,11.26363398]
[1737140799040,11.26363398,216.45,216.35,4.62]
[1737140799840,1.4871,216.47,216.32,11.26363398]
[1737140800044,1.4871,216.47,216.33,1.5607]
[1737140800439,4.6185,216.43,216.33,1.5607]
[1737140800640,1.4871,216.47,216.33,1.5607]
[1737140801040,4.6186,216.42,216.36,4.6198]
[1737140802142,4.6186,216.42,216.35,4.6199]
[1737140802442,11.26363398,216.51,216.38,11.26363398]
[1737140802743,4.6186,216.42,216.35,11.26363398]
[1737140803343,4.6186,216.42,216.37,4.6194]
[1737140803642,11.26363398,216.51,216.37,4.78]
[1737140803840,11.26363398,216.51,216.38,3.023]
[1737140804442,4.6181,216.45,216.39,4.619]
[1737140804944,4.6181,216.45,216.4,4.6189]
[1737140806343,4.6183,216.44,216.39,4.6191]
[1737140807547,4.6183,216.44,216.39,11.83171487]
[1737140808847,4.6183,216.44,216.4,4.6189]
[1737140809251,4.6179,216.45,216.41,7.21261487]
[1737140809441,7.21261487,216.48,216.41,11.83121487]
[1737140809639,4.6178,216.46,216.41,11.83121487]
[1737140811246,4.6179,216.45,216.41,11.83121487]
[1737140813545,4.6179,216.45,216.41,4.6186]
[1737140813748,4.6179,216.45,216.4,4.6189]
[1737140816150,4.6181,216.44,216.4,4.6189]
[1737140816347,7.21261487,216.42,216.38,1.5704]
[1737140816550,7.21261487,216.43,216.35,7.21261487]
[1737140816741,9.2329,216.52,216.37,7.21261487]
[1737140816941,7.21261487,216.47,216.4,4.6189]
[1737140817152,4.6181,216.45,216.39,7.21261487]
[1737140817455,7.21261487,216.47,216.39,11.83161487]
[1737140817657,4.6181,216.44,216.39,7.21261487]
[1737140817955,7.21261487,216.47,216.39,7.21261487]
[1737140818856,4.6179,216.45,216.39,7.21261487]
[1737140819047,7.21261487,216.47,216.39,7.21261487]
[1737140819955,4.6178,216.46,216.41,4.6186]
[1737140820155,7.21261487,216.47,216.41,4.6186]
[1737140821054,4.6179,216.45,216.41,4.6186]
[1737140822254,4.6179,216.45,216.39,7.21261487]
[1737140822451,4.6179,216.45,216.4,4.6188]
[1737140824856,4.6179,216.45,216.41,4.6186]
[1737140825053,4.6179,216.45,216.39,7.21261487]
[1737140825954,7.21261487,216.49,216.41,7.21261487]
[1737140827051,4.6174,216.47,216.43,4.6181]
[1737140827558,8.50950538,216.55,216.43,7.21261487]
[1737140827759,1.5768,216.55,216.47,7.21261487]
[1737140827959,7.21261487,216.56,216.49,7.21261487]
[1737140828461,4.6161,216.53,216.49,11.82951487]
[1737140828856,4.6161,216.53,216.49,4.6169]
[1737140829053,7.21261487,216.54,216.41,3.0744]
[1737140829258,7.21261487,216.5,216.43,7.21261487]
[1737140829554,7.21261487,216.5,216.42,4.78]
[1737140829555,7.21261487,216.48,216.42,4.78]
[1737140829858,4.6179,216.45,216.42,4.78]
[1737140830058,7.21261487,216.48,216.42,4.78]
[1737140830259,4.6177,216.46,216.42,4.78]
[1737140830660,4.6171,216.48,216.42,4.78]
[1737140831160,4.6171,216.48,216.43,11.83061487]
[1737140831359,4.6169,216.5,216.45,7.21261487]
[1737140832055,7.21261487,216.52,216.45,7.21261487]
[1737140832356,7.21261487,216.52,216.43,7.21261487]
[1737140832556,7.21261487,216.48,216.42,4.78]
[1737140832757,4.6175,216.47,216.42,4.78]
[1737140832949,7.21261487,216.48,216.42,4.78]
[1737140834063,4.6177,216.46,216.42,4.78]
[1737140834261,6.94283634,216.57,216.42,4.78]
[1737140834455,7.21261487,216.51,216.44,4.618]
[1737140835162,4.6169,216.49,216.44,4.618]
[1737140835459,4.6169,216.49,216.45,4.6177]
[1737140836063,4.6172,216.48,216.45,4.6177]
[1737140836467,6.94283634,216.57,216.45,7.21261487]
[1737140836655,4.6163,216.52,216.47,7.21261487]
[1737140837270,4.615,216.58,216.51,7.21261487]
[1737140837465,7.21261487,216.58,216.51,7.21261487]
[1737140837860,7.30583634,216.62,216.51,7.21261487]
[1737140837861,4.6158,216.55,216.51,11.82911487]
[1737140838371,4.6154,216.56,216.52,4.6161]
[1737140838567,7.21261487,216.59,216.52,4.6161]
[1737140839568,7.21261487,216.59,216.51,7.21261487]
[1737140840068,4.6157,216.55,216.51,7.21261487]
[1737140841268,4.6157,216.55,216.51,11.82911487]
[1737140843672,7.21261487,216.57,216.51,11.82911487]
[1737140844072,7.21261487,216.57,216.53,4.616]
[1737140844268,4.6154,216.57,216.53,4.616]
[1737140844773,7.21261487,216.59,216.53,4.616]
[1737140845071,4.6158,216.55,216.51,11.82891487]
[1737140845266,7.21261487,216.59,216.51,11.82891487]
[1737140846177,7.21261487,216.55,216.44,6.2808]
[1737140846368,7.21261487,216.53,216.46,7.21261487]
[1737140846675,4.6175,216.47,216.44,7.21261487]
[1737140846869,7.21261487,216.52,216.44,7.21261487]
[1737140847071,4.6171,216.49,216.44,11.83061487]
[1737140847268,4.6171,216.49,216.44,7.21261487]
[1737140847666,4.6169,216.5,216.46,7.21261487]
[1737140848378,4.617,216.49,216.46,7.21261487]
[1737140850076,4.6168,216.5,216.46,7.21261487]
[1737140850277,7.21261487,216.54,216.46,7.21261487]
[1737140850471,4.6164,216.52,216.46,7.21261487]
[1737140850674,7.21261487,216.54,216.46,7.21261487]
[1737140851180,4.6169,216.5,216.46,7.21261487]
[1737140851373,7.21261487,216.54,216.46,7.21261487]
[1737140851678,4.6168,216.5,216.46,11.83011487]
[1737140852777,4.6168,216.5,216.46,7.21261487]
[1737140852977,7.21261487,216.54,216.46,7.21261487]
[1737140853178,0.1575,216.6,216.43,1.6099]
[1737140853179,7.21261487,216.56,216.48,7.21261487]
[1737140853575,4.6159,216.54,216.5,7.21261487]
[1737140853778,7.21261487,216.58,216.5,7.21261487]
[1737140853974,7.21261487,216.56,216.5,7.21261487]
[1737140854476,7.21261487,216.58,216.5,11.82931487]
[1737140854679,7.21261487,216.58,216.5,7.21261487]
[1737140855382,7.21261487,216.56,216.5,7.21261487]
[1737140855977,4.616,216.54,216.5,11.82931487]
[1737140856181,7.21261487,216.58,216.5,7.21261487]
[1737140856382,7.21261487,216.58,216.43,15.4499]
[1737140856383,7.21261487,216.58,216.52,7.21261487]
[1737140856581,7.21261487,216.6,216.52,7.21261487]
[1737140856793,4.6156,216.56,216.53,4.6161]
[1737140859583,4.6156,216.56,216.52,11.82881487]
[1737140860381,7.21261487,216.6,216.52,11.82881487]
[1737140860382,4.6157,216.55,216.52,11.82881487]
[1737140860575,4.6157,216.55,216.52,7.21261487]
[1737140861883,4.6157,216.55,216.52,11.82891487]
[1737140863184,4.6157,216.55,216.52,7.21261487]
[1737140863887,4.6161,216.53,216.5,7.21261487]
[1737140864083,7.21261487,216.56,216.48,7.21261487]
[1737140865288,4.6165,216.52,216.48,7.21261487]
[1737140866187,7.21261487,216.54,216.46,7.21261487]
[1737140866487,4.6169,216.5,216.46,7.21261487]
[1737140866687,7.21261487,216.54,216.46,7.21261487]
[1737140867483,7.21261487,216.54,216.46,11.83011487]
[1737140867884,4.6163,216.53,216.48,7.21261487]
[1737140868192,7.21261487,216.54,216.48,7.21261487]
[1737140868489,4.6164,216.52,216.48,7.21261487]
[1737140869183,7.21261487,216.54,216.48,7.21261487]
[1737140869487,7.21261487,216.56,216.49,4.6169]
[1737140869686,7.21261487,216.56,216.5,7.21261487]
[1737140870789,4.6162,216.53,216.5,7.21261487]
[1737140871386,4.6158,216.55,216.5,7.21261487]
[1737140871889,4.6159,216.54,216.5,11.82931487]
[1737140872090,7.21261487,216.58,216.5,7.21261487]
[1737140872585,0.1584,216.65,216.52,11.82881487]
[1737140872586,7.21261487,216.6,216.52,11.82881487]
[1737140873693,4.6155,216.56,216.53,4.6161]
[1737140874189,4.6155,216.56,216.52,7.21261487]
[1737140874388,4.6155,216.56,216.52,11.82871487]
[1737140878596,4.6155,216.56,216.52,4.6161]
[1737140878890,6.94073231,216.65,216.54,7.21261487]
[1737140879090,7.21261487,216.61,216.54,7.21261487]
[1737140879293,1.4888,216.66,216.56,7.21261487]
[1737140879494,8.06094307,216.65,216.58,7.21261487]
[1737140879695,4.6143,216.62,216.58,11.82751487]
[1737140880194,4.6144,216.61,216.58,7.21261487]
[1737140881793,4.6146,216.6,216.58,7.21261487]
[1737140882599,4.6146,216.6,216.57,7.21261487]
[1737140882896,7.21261487,216.65,216.57,7.21261487]
[1737140883100,7.21261487,216.61,216.52,4.5547]
[1737140883301,7.21261487,216.57,216.52,3.0713]
[1737140883499,7.21261487,216.57,216.5,7.21261487]
[1737140883500,4.6156,216.55,216.5,7.21261487]
[1737140883702,7.21261487,216.57,216.5,7.21261487]
[1737140884196,4.6163,216.52,216.5,7.21261487]
[1737140884706,7.21261487,216.57,216.48,7.21261487]
[1737140885301,4.6164,216.52,216.48,7.21261487]
[1737140886692,4.6164,216.52,216.48,11.82971487]
[1737140888104,4.616,216.53,216.5,7.21261487]
[1737140889099,7.21261487,216.59,216.52,7.21261487]
[1737140889401,7.21261487,216.63,216.54,7.21261487]
[1737140889596,7.21261487,216.63,216.54,11.82841487]
[1737140889802,7.21261487,216.63,216.54,4.6158]
[1737140890004,7.21261487,216.63,216.54,7.21261487]
[1737140890206,4.6152,216.57,216.54,7.21261487]
[1737140891000,7.21261487,216.59,216.52,7.21261487]
[1737140891600,4.6152,216.57,216.52,7.21261487]
[1737140891800,7.21261487,216.59,216.52,7.21261487]
[1737140892298,4.6158,216.55,216.52,7.21261487]
[1737140893804,7.21261487,216.59,216.5,7.21261487]
[1737140894302,7.21261487,216.57,216.5,7.21261487]
[1737140895205,7.21261487,216.59,216.52,7.21261487]
[1737140895508,6.94073231,216.63,216.45,2.9818]